fUST/lending_fUST_20250422
["ID","MTS","AMOUNT","RATE_DAILY","PERIOD"]
[358594735,1745298635618,-500.0,0.00022858,2]
[358594736,1745298635628,-500.0,0.00022858,2]
[358594737,1745298635647,-500.0,0.00022858,2]
[358594738,1745298635666,-500.0,0.00022858,2]
[358594739,1745298635687,-500.0,0.00022858,2]
[358594740,1745298635708,-500.0,0.00022858,2]
[358594741,1745298635728,-500.0,0.00022858,2]
[358594742,1745298635746,-500.0,0.00022858,2]
[358594743,1745298635765,-517.61393156,0.00022858,2]
[358594744,1745298635781,-508.05939033,0.00022858,2]
[358594745,1745298635804,-500.0,0.00022858,2]
[358594746,1745298635825,-504.42577727,0.00022858,2]
[358594747,1745298635842,-500.0,0.00022858,2]
[358594748,1745298635856,-500.0,0.00022858,2]
[358594749,1745298635876,-500.0,0.00022858,2]
[358594750,1745298635892,-504.04862104,0.00022858,2]
[358594751,1745298635907,-500.0,0.00022858,2]
[358594752,1745298635922,-500.0,0.00022858,2]
[358594753,1745298635937,-500.0,0.00022858,2]
[358594754,1745298635953,-527.67,0.00022858,2]
[358594755,1745298635979,-500.0,0.00022858,2]
[358594756,1745298635998,-573.69,0.00022858,2]
[358594757,1745298636014,-500.0,0.00022858,2]
[358594758,1745298636032,-508.77209913,0.00022858,2]
[358594759,1745298636054,-500.0,0.00022858,2]
[358594760,1745298636069,-500.0,0.00022858,2]
[358594761,1745298636086,-500.0,0.00022858,2]
[358594762,1745298636105,-500.0,0.00022858,2]
[358594763,1745298636120,-500.0,0.00022858,2]
[358594764,1745298636137,-507.68514085,0.00022858,2]
[358594765,1745298636153,-590.94,0.00022858,2]
[358594766,1745298636168,-500.0,0.00022858,2]
[358594767,1745298636184,-500.0,0.00022858,2]
[358594768,1745298636201,-500.0,0.00022858,2]
[358594769,1745298636216,-1000.0,0.00022858,2]
[358594770,1745298636232,-500.0,0.00022858,2]
[358594771,1745298636247,-609.2273853,0.00022858,2]
[358594772,1745298636262,-500.0,0.00022858,2]
[358594773,1745298636278,-500.0,0.00022858,2]
[358594774,1745298636294,-521.34869465,0.00022858,2]
[358594775,1745298636309,-500.0,0.00022858,2]
[358594776,1745298636324,-500.0,0.00022858,2]
[358594777,1745298636337,-500.0,0.00022858,2]
[358594778,1745298636347,-500.0,0.00022858,2]
[358594779,1745298636356,-500.0,0.00022858,2]
[358594780,1745298636482,-501.80628382,0.00022858,2]
[358594781,1745298636492,-500.0,0.00022858,2]
[358594782,1745298636502,-500.0,0.00022858,2]
[358594783,1745298636511,-500.0,0.00022858,2]
[358594784,1745298636521,-507.9750831,0.00022858,2]
[358594785,1745298636531,-500.0,0.00022858,2]
[358594786,1745298636542,-500.0,0.00022858,2]
[358594787,1745298636551,-500.0,0.00022858,2]
[358594788,1745298636560,-500.0,0.00022858,2]
[358594789,1745298636569,-500.0,0.00022858,2]
[358594790,1745298636579,-500.0,0.00022858,2]
[358594791,1745298636589,-500.0,0.00022858,2]
[358594792,1745298636600,-502.85915773,0.00022858,2]
[358594793,1745298636610,-500.0,0.00022858,2]
[358594794,1745298636619,-500.0,0.00022858,2]
[358594795,1745298636628,-500.0,0.00022858,2]
[358594796,1745298636638,-500.0,0.00022858,2]
[358594797,1745298636647,-500.0,0.00022858,2]
[358594798,1745298636656,-500.0,0.00022858,2]
[358594799,1745298636665,-508.86183904,0.00022858,2]
[358594800,1745298636675,-500.0,0.00022858,2]
[358594801,1745298636684,-500.0,0.00022858,2]
[358594802,1745298636694,-538.85286299,0.00022858,2]
[358594803,1745298636704,-503.01834311,0.00022858,2]
[358594804,1745298636713,-500.0,0.00022858,2]
[358594805,1745298636723,-500.0,0.00022858,2]
[358594806,1745298636732,-501.08248377,0.00022858,2]
[358594807,1745298636742,-500.0,0.00022858,2]
[358594808,1745298636751,-591.72392268,0.00022858,2]
[358594809,1745298636761,-500.0,0.00022858,2]
[358594810,1745298636772,-500.0,0.00022858,2]
[358594811,1745298636781,-526.8016553,0.00022858,2]
[358594812,1745298636792,-500.0,0.00022858,2]
[358594813,1745298636802,-500.0,0.00022858,2]
[358594814,1745298636811,-501.88931397,0.00022858,2]
[358594815,1745298636821,-507.36105845,0.00022858,2]
[358594816,1745298636831,-500.0,0.00022858,2]
[358594817,1745298636841,-500.0,0.00022858,2]
[358594818,1745298636851,-505.35538776,0.00022858,2]
[358594819,1745298636861,-500.0,0.00022858,2]
[358594820,1745298636871,-500.93927106,0.00022858,2]
[358594821,1745298636880,-500.0,0.00022858,2]
[358594822,1745298636890,-500.91613246,0.00022858,2]
[358594823,1745298636900,-504.97304506,0.00022858,2]
[358594824,1745298636910,-500.0,0.00022858,2]
[358594825,1745298636919,-500.0,0.00022858,2]
[358594826,1745298636929,-500.0,0.00022858,2]
[358594827,1745298636939,-512.16638216,0.00022858,2]
[358594828,1745298636948,-505.25597955,0.00022858,2]
[358594829,1745298636958,-500.0,0.00022858,2]
[358594830,1745298636967,-500.0,0.00022858,2]
[358594831,1745298636977,-500.0,0.00022858,2]
[358594832,1745298636986,-506.5047869,0.00022858,2]
[358594833,1745298636996,-500.0,0.00022858,2]
[358594834,1745298637006,-500.0,0.00022858,2]
[358594835,1745298637015,-560.59642817,0.00022858,2]
[358594836,1745298637024,-518.59833427,0.00022858,2]
[358594837,1745298637034,-500.0,0.00022858,2]
[358594838,1745298637044,-500.0,0.00022858,2]
[358594839,1745298637058,-502.51998968,0.00022858,2]
[358594840,1745298637068,-542.27178735,0.00022858,2]
[358594841,1745298637078,-505.97162203,0.00022858,2]
[358594842,1745298637087,-500.0,0.00022858,2]
[358594843,1745298637098,-500.0,0.00022858,2]
[358594844,1745298637107,-503.05078921,0.00022858,2]
[358594845,1745298637116,-500.0,0.00022858,2]
[358594846,1745298637128,-500.0,0.00022858,2]
[358594847,1745298637137,-500.0,0.00022858,2]
[358594848,1745298637146,-500.0,0.00022858,2]
[358594849,1745298637156,-500.0,0.00022858,2]
[358594850,1745298637166,-500.0,0.00022858,2]
[358594851,1745298637175,-500.0,0.00022858,2]
[358594852,1745298637185,-500.0,0.00022858,2]
[358594853,1745298637195,-500.0,0.00022858,2]
[358594854,1745298637205,-500.0,0.00022858,2]
[358594855,1745298637214,-500.0,0.00022858,2]
[358594856,1745298637224,-500.0,0.00022858,2]
[358594857,1745298637234,-500.0,0.00022858,2]
[358594858,1745298637244,-500.0,0.00022858,2]
[358594859,1745298637255,-500.0,0.00022858,2]
[358594860,1745298637264,-500.0,0.00022858,2]
[358594861,1745298637274,-500.0,0.00022858,2]
[358594862,1745298637284,-500.0,0.00022858,2]
[358594863,1745298637294,-500.0,0.00022858,2]
[358594864,1745298637304,-500.0,0.00022858,2]
[358594865,1745298637314,-503.08560404,0.00022858,2]
[358594866,1745298637324,-506.28611781,0.00022858,2]
[358594867,1745298637334,-500.0,0.00022858,2]
[358594868,1745298637343,-500.0,0.00022858,2]
[358594869,1745298637353,-500.0,0.00022858,2]
[358594870,1745298637363,-500.0,0.00022858,2]
[358594871,1745298637372,-500.0,0.00022858,2]
[358594872,1745298637382,-500.0,0.00022858,2]
[358594873,1745298637393,-509.38824268,0.00022858,2]
[358594874,1745298637403,-1446.68,0.00022858,2]
[358594875,1745298637413,-500.0,0.00022858,2]
[358594876,1745298637422,-500.0,0.00022858,2]
[358594877,1745298637432,-500.0,0.00022858,2]
[358594878,1745298637442,-500.0,0.00022858,2]
[358594879,1745298637451,-500.0,0.00022858,2]
[358594880,1745298637461,-500.0,0.00022858,2]
[358594881,1745298637470,-507.81386732,0.00022858,2]
[358594882,1745298637480,-501.06601653,0.00022858,2]
[358594883,1745298637489,-500.0,0.00022858,2]
[358594884,1745298637498,-500.0,0.00022858,2]
[358594885,1745298637508,-506.40026195,0.00022858,2]
[358594886,1745298637518,-500.0,0.00022858,2]
[358594887,1745298637528,-500.0,0.00022858,2]
[358594888,1745298637539,-500.0,0.00022858,2]
[358594889,1745298637548,-500.0,0.00022858,2]
[358594890,1745298637557,-500.0,0.00022858,2]
[358594891,1745298637567,-500.0,0.00022858,2]
[358594892,1745298637577,-500.0,0.00022858,2]
[358594893,1745298637587,-500.0,0.00022858,2]
[358594894,1745298637597,-500.0,0.00022858,2]
[358594895,1745298637608,-807.23,0.00022858,2]
[358594896,1745298637618,-500.0,0.00022858,2]
[358594897,1745298637627,-500.0,0.00022858,2]
[358594898,1745298637636,-500.0,0.00022858,2]
[358594899,1745298637645,-500.0,0.00022858,2]
[358594900,1745298637656,-500.0,0.00022858,2]
[358594901,1745298637665,-500.0,0.00022858,2]
[358594902,1745298637675,-500.0,0.00022858,2]
[358594903,1745298637687,-500.0,0.00022858,2]
[358594904,1745298637696,-500.0,0.00022858,2]
[358594905,1745298637705,-500.0,0.00022858,2]
[358594906,1745298637714,-500.0,0.00022858,2]
[358594907,1745298637724,-504.88414029,0.00022858,2]
[358594908,1745298637733,-500.0,0.00022858,2]
[358594909,1745298637743,-500.0,0.00022858,2]
[358594910,1745298637752,-500.0,0.00022858,2]
[358594911,1745298637761,-500.0,0.00022858,2]
[358594912,1745298637771,-500.0,0.00022858,2]
[358594913,1745298637781,-500.0,0.00022858,2]
[358594914,1745298637790,-500.0,0.00022858,2]
[358594915,1745298637800,-500.0,0.00022858,2]
[358594916,1745298637810,-500.0,0.00022858,2]
[358594917,1745298637819,-500.0,0.00022858,2]
[358594918,1745298637829,-500.0,0.00022858,2]
[358594919,1745298637839,-500.0,0.00022858,2]
[358594920,1745298637849,-500.0,0.00022858,2]
[358594921,1745298637859,-500.0,0.00022858,2]
[358594922,1745298637868,-500.0,0.00022858,2]
[358594923,1745298637877,-500.0,0.00022858,2]
[358594924,1745298637888,-500.0,0.00022858,2]
[358594925,1745298637898,-500.0,0.00022858,2]
[358594926,1745298637908,-500.0,0.00022858,2]
[358594927,1745298637918,-500.0,0.00022858,2]
[358594928,1745298637927,-500.0,0.00022858,2]
[358594929,1745298637937,-5798.15,0.00022858,2]
[358594930,1745298638018,-5798.15,0.00022858,2]
[358594931,1745298638027,-500.0,0.00022858,2]
[358594932,1745298638037,-500.0,0.00022858,2]
[358594933,1745298638047,-500.0,0.00022858,2]
[358594934,1745298638061,-500.0,0.00022858,2]
[358594935,1745298638071,-500.0,0.00022858,2]
[358594936,1745298638081,-500.0,0.00022858,2]
[358594937,1745298638090,-500.0,0.00022858,2]
[358594938,1745298638100,-500.0,0.00022858,2]
[358594939,1745298638110,-500.0,0.00022858,2]
[358594940,1745298638120,-501.53232725,0.00022858,2]
[358594941,1745298638131,-500.0,0.00022858,2]
[358594942,1745298638141,-500.0,0.00022858,2]
[358594944,1745298638151,-504.40571757,0.00022858,2]
[358594945,1745298638161,-500.0,0.00022858,2]
[358594946,1745298638170,-507.78589177,0.00022858,2]
[358594947,1745298638180,-184.79700741,0.00022858,2]
[358594948,1745298638189,-500.0,0.00022858,2]
[358594949,1745298638199,-500.0,0.00022858,2]
[358594950,1745298638209,-500.0,0.00022858,2]
[358594951,1745298638219,-508.9880617,0.00022858,2]
[358594952,1745298638229,-500.0,0.00022858,2]
[358594953,1745298638238,-500.0,0.00022858,2]
[358594954,1745298638248,-500.0,0.00022858,2]
[358594955,1745298638258,-190.56944581,0.00022858,2]
[358594956,1745298638267,-530.31497209,0.00022858,2]
[358594957,1745298638277,-1702.25,0.00022858,2]
[358594958,1745298638286,-504.044517,0.00022858,2]
[358594959,1745298638296,-500.0,0.00022858,2]
[358594960,1745298638306,-500.0,0.00022858,2]
[358594961,1745298638315,-551.25,0.00022858,2]
[358594962,1745298638324,-500.0,0.00022858,2]
[358594963,1745298638334,-500.0,0.00022858,2]
[358594964,1745298638343,-500.0,0.00022858,2]
[358594965,1745298638353,-500.0,0.00022858,2]
[358594966,1745298638362,-500.0,0.00022858,2]
[358594967,1745298638372,-500.0,0.00022858,2]
[358594968,1745298638381,-500.0,0.00022858,2]
[358594969,1745298638390,-619.88658735,0.00022858,2]
[358594971,1745298638400,-500.0,0.00022858,2]
[358594973,1745298638409,-500.0,0.00022858,2]
[358594975,1745298638419,-500.0,0.00022858,2]
[358594976,1745298638428,-500.0,0.00022858,2]
[358594977,1745298638437,-500.0,0.00022858,2]
[358594978,1745298638446,-500.0,0.00022858,2]
[358594979,1745298638455,-500.0,0.00022858,2]
[358594980,1745298638465,-502.53091381,0.00022858,2]
[358594981,1745298638474,-500.0,0.00022858,2]
[358594982,1745298638483,-500.0,0.00022858,2]
[358594983,1745298638492,-500.0,0.00022858,2]
[358594984,1745298638502,-500.0,0.00022858,2]
[358594985,1745298638511,-500.0,0.00022858,2]
[358594986,1745298638520,-501.51253552,0.00022858,2]
[358594987,1745298638530,-500.0,0.00022858,2]
[358594988,1745298638539,-607.06,0.00022858,2]
[358594989,1745298638548,-504.05138199,0.00022858,2]
[358594990,1745298638557,-500.0,0.00022858,2]
[358594991,1745298638567,-500.0,0.00022858,2]
[358594992,1745298638576,-247.53432834,0.00022858,2]
[358594993,1745298638585,-502.00447578,0.00022858,2]
[358594994,1745298638594,-500.0,0.00022858,2]
[358594995,1745298638603,-500.0,0.00022858,2]
[358594996,1745298638612,-500.0,0.00022858,2]
[358594997,1745298638621,-501.2090953,0.00022858,2]
[358594998,1745298638630,-500.0,0.00022858,2]
[358595000,1745298638640,-383.1626213,0.00022858,2]
[358595002,1745298638650,-500.0,0.00022858,2]
[358595004,1745298638660,-500.0,0.00022858,2]
[358595006,1745298638669,-757.95,0.00022858,2]
[358595008,1745298638679,-500.0,0.00022858,2]
[358595010,1745298638688,-500.0,0.00022859,2]
[358595012,1745298638698,-5402.49,0.00022859,2]
[358595014,1745298638708,-251.413645,0.00022859,7]
[358595016,1745298638718,-507.33,0.00022859,2]
[358595018,1745298638728,-500.0,0.00022859,2]
[358595020,1745298638737,-359.52222934,0.00022859,2]
[358595022,1745298638747,-473.823743,0.00022859,7]
[358595024,1745298638757,-473.823743,0.00022859,7]
[358595026,1745298638767,-151.443652,0.00022859,7]
[358595028,1745298638776,-151.443652,0.00022859,7]
[358595030,1745298638785,-5798.15,0.00022859,2]
[358595032,1745298638795,-356.995107,0.00022859,7]
[358595034,1745298638805,-356.995107,0.00022859,7]
[358595036,1745298638814,-204.5823261,0.00022859,2]
[358595038,1745298638824,-151.0,0.00022859,2]
[358595040,1745298638833,-500.0,0.0002286,2]
[358595042,1745298638843,-544.62663017,0.0002286,2]
[358595044,1745298638852,-508.69436514,0.0002286,2]
[358595046,1745298638861,-500.0,0.0002286,2]
[358595048,1745298638871,-500.0,0.0002286,2]
[358595050,1745298638881,-500.0,0.0002286,2]
[358595052,1745298638890,-500.0,0.0002286,2]
[358595054,1745298638899,-500.0,0.0002286,2]
[358595056,1745298638909,-500.0,0.0002286,2]
[358595058,1745298638918,-500.0,0.0002286,2]
[358595060,1745298638928,-500.0,0.0002286,2]
[358595062,1745298638938,-512.33102215,0.0002286,2]
[358595064,1745298638947,-505.72700804,0.0002286,2]
[358595066,1745298638957,-500.0,0.0002286,2]
[358595068,1745298638966,-507.29760826,0.0002286,2]
[358595071,1745298638975,-506.17183024,0.0002286,2]
[358595074,1745298638985,-506.97711278,0.0002286,2]
[358595076,1745298638994,-500.0,0.0002286,2]
[358595078,1745298639003,-500.0,0.0002286,2]
[358595080,1745298639013,-151.0,0.0002286,7]
[358595082,1745298639022,-151.0,0.0002286,7]
[358595084,1745298639031,-500.0,0.0002286,2]
[358595086,1745298639041,-500.0,0.0002286,2]
[358595088,1745298639056,-500.0,0.0002286,2]
[358595090,1745298639066,-510.88343741,0.0002286,2]
[358595092,1745298639076,-842.166407,0.0002286,2]
[358595094,1745298639086,-176.234992,0.0002286,7]
[358595096,1745298639098,-842.166407,0.0002286,2]
[358595098,1745298639107,-176.234992,0.0002286,7]
[358595100,1745298639117,-347.153184,0.0002286,7]
[358595102,1745298639126,-347.153184,0.0002286,7]
[358595104,1745298639137,-4779.31954691,0.0002286,2]
[358595157,1745298639760,-500.0,0.00021917,2]
[358595158,1745298639769,-500.0,0.00022738,2]
[358595159,1745298639780,-500.0,0.00022738,2]
[358595160,1745298639789,-500.0,0.00022858,2]
[358595161,1745298639800,-1018.83045309,0.0002286,2]
[358595162,1745298639809,-151.0,0.0002286,2]
[358595163,1745298639819,-500.0,0.0002286,2]
[358595164,1745298639828,-151.51901017,0.0002286,2]
[358595165,1745298639837,-151.0,0.0002286,2]
[358595166,1745298639846,-166.79409285,0.0002286,2]
[358595167,1745298639856,-192.19065671,0.0002286,2]
[358595168,1745298639865,-160.51690341,0.0002286,2]
[358595169,1745298639875,-151.0,0.0002286,2]
[358595171,1745298639884,-154.69051424,0.0002286,2]
[358595173,1745298639894,-156.99040747,0.0002286,2]
[358595176,1745298639910,-151.0,0.0002286,2]
[358595178,1745298639923,-500.0,0.00022861,2]
[358595180,1745298639933,-1097.92,0.00022861,2]
[358595182,1745298639944,-500.0,0.00022861,2]
[358595184,1745298639954,-500.0,0.00022861,2]
[358595186,1745298639965,-500.0,0.00022861,2]
[358595188,1745298639974,-500.0,0.00022861,2]
[358595190,1745298639984,-686.02,0.00022861,2]
[358595192,1745298639994,-500.0,0.00022861,2]
[358595194,1745298640004,-1397.61,0.00022861,2]
[358595197,1745298640014,-500.0,0.00022861,2]
[358595199,1745298640024,-698.71,0.00022861,2]
[358595201,1745298640034,-500.0,0.00022861,2]
[358595203,1745298640044,-500.0,0.00022861,2]
[358595205,1745298640055,-842.166407,0.00022861,2]
[358595207,1745298640065,-842.166407,0.00022861,2]
[358595209,1745298640075,-473.823743,0.00022861,7]
[358595211,1745298640084,-473.823743,0.00022861,7]
[358595213,1745298640095,-151.443652,0.00022861,7]
[358595214,1745298640104,-151.443652,0.00022861,7]
[358595216,1745298640114,-356.995107,0.00022861,7]
[358595218,1745298640124,-356.995107,0.00022861,7]
[358595220,1745298640134,-5798.15,0.00022862,2]
[358595222,1745298640144,-151.0,0.00022863,7]
[358595224,1745298640154,-242.052739,0.00022863,7]
[358595226,1745298640163,-176.234992,0.00022863,7]
[358595228,1745298640173,-176.234992,0.00022863,7]
[358595230,1745298640183,-347.153184,0.00022863,7]
[358595232,1745298640192,-347.153184,0.00022863,7]
[358595234,1745298640202,-5798.15,0.00022863,2]
[358595236,1745298640212,-500.82544185,0.00022864,2]
[358595238,1745298640222,-500.96735198,0.00022864,2]
[358595240,1745298640231,-500.0,0.00022864,2]
[358595242,1745298640241,-502.2594155,0.00022864,2]
[358595244,1745298640251,-500.0,0.00022864,2]
[358595247,1745298640261,-500.0,0.00022864,2]
[358595249,1745298640270,-500.0,0.00022864,2]
[358595251,1745298640280,-500.54663892,0.00022864,2]
[358595253,1745298640289,-500.0,0.00022864,2]
[358595255,1745298640299,-574.25390053,0.00022864,2]
[358595257,1745298640308,-151.0,0.00022864,7]
[358595259,1745298640319,-151.0,0.00022864,7]
[358595261,1745298640328,-242.585544,0.00022864,7]
[358595263,1745298640338,-242.585544,0.00022864,7]
[358595265,1745298640348,-473.823743,0.00022864,7]
[358595267,1745298640359,-473.823743,0.00022864,7]
[358595269,1745298640369,-151.443652,0.00022864,7]
[358595271,1745298640381,-151.443652,0.00022864,7]
[358595273,1745298640390,-5798.15,0.00022864,2]
[358595275,1745298640400,-5798.15,0.00022864,2]
[358595278,1745298640410,-5798.15,0.00022864,2]
[358595280,1745298640419,-5798.15,0.00022864,2]
[358595292,1745298640529,-5798.15,0.00022864,2]
[358595294,1745298640538,-356.995107,0.00022864,7]
[358595296,1745298640548,-356.995107,0.00022864,7]
[358595297,1745298640557,-151.0,0.00022864,7]
[358595299,1745298640566,-151.0,0.00022864,7]
[358595301,1745298640576,-151.0,0.00022865,7]
[358595303,1745298640586,-500.0,0.00022865,2]
[358595305,1745298640595,-495.89962436,0.00022865,2]
[358595307,1745298640605,-500.0,0.00022865,2]
[358595308,1745298640614,-503.99329265,0.00022865,2]
[358595309,1745298640624,-500.0,0.00022865,2]
[358595310,1745298640634,-500.0,0.00022865,2]
[358595311,1745298640644,-500.0,0.00022865,2]
[358595312,1745298640653,-500.0,0.00022865,2]
[358595313,1745298640663,-501.14097144,0.00022865,2]
[358595314,1745298640673,-500.0,0.00022865,2]
[358595315,1745298640683,-500.0,0.00022865,2]
[358595316,1745298640692,-502.73274022,0.00022865,2]
[358595317,1745298640702,-500.0,0.00022865,2]
[358595318,1745298640712,-500.0,0.00022865,2]
[358595319,1745298640721,-500.0,0.00022865,2]
[358595320,1745298640731,-500.62730024,0.00022865,2]
[358595321,1745298640740,-500.0,0.00022865,2]
[358595322,1745298640750,-500.0,0.00022865,2]
[358595323,1745298640759,-500.0,0.00022865,2]
[358595324,1745298640768,-500.0,0.00022865,2]
[358595325,1745298640778,-500.0,0.00022865,2]
[358595326,1745298640787,-500.0,0.00022865,2]
[358595327,1745298640797,-500.0,0.00022865,2]
[358595328,1745298640807,-500.0,0.00022865,2]
[358595329,1745298640817,-500.0,0.00022865,2]
[358595330,1745298640826,-500.0,0.00022865,2]
[358595331,1745298640836,-500.0,0.00022865,2]
[358595332,1745298640846,-513.83430342,0.00022865,2]
[358595333,1745298640855,-505.99046163,0.00022865,2]
[358595334,1745298640865,-500.0,0.00022865,2]
[358595335,1745298640875,-500.0,0.00022865,2]
[358595336,1745298640884,-500.0,0.00022865,2]
[358595337,1745298640894,-500.0,0.00022865,2]
[358595338,1745298640903,-151.0,0.00022865,7]
[358595339,1745298640912,-500.0,0.00022865,2]
[358595340,1745298640922,-500.0,0.00022865,2]
[358595341,1745298640932,-151.0,0.00022865,7]
[358595342,1745298640942,-500.99994773,0.00022865,2]
[358595343,1745298640952,-500.0,0.00022865,2]
[358595344,1745298640962,-500.0,0.00022865,2]
[358595345,1745298640971,-500.0,0.00022865,2]
[358595346,1745298640981,-500.0,0.00022865,2]
[358595347,1745298640991,-500.0,0.00022865,2]
[358595348,1745298641000,-501.54761967,0.00022865,2]
[358595349,1745298641011,-500.0,0.00022865,2]
[358595350,1745298641020,-503.47511865,0.00022865,2]
[358595351,1745298641030,-500.0,0.00022865,2]
[358595352,1745298641040,-505.30203898,0.00022865,2]
[358595353,1745298641050,-500.0,0.00022865,2]
[358595354,1745298641063,-501.59673302,0.00022865,2]
[358595355,1745298641073,-500.0,0.00022865,2]
[358595356,1745298641082,-500.0,0.00022865,2]
[358595357,1745298641092,-500.0,0.00022865,2]
[358595358,1745298641103,-500.0,0.00022865,2]
[358595359,1745298641112,-504.30444375,0.00022865,2]
[358595360,1745298641122,-500.0,0.00022865,2]
[358595361,1745298641131,-793.68,0.00022865,2]
[358595362,1745298641141,-504.1054095,0.00022865,2]
[358595363,1745298641151,-500.0,0.00022865,2]
[358595364,1745298641160,-500.0,0.00022865,2]
[358595365,1745298641170,-151.0,0.00022865,7]
[358595366,1745298641180,-505.62941426,0.00022865,2]
[358595367,1745298641189,-500.0,0.00022865,2]
[358595368,1745298641199,-151.0,0.00022865,7]
[358595369,1745298641209,-154.693783,0.00022865,7]
[358595370,1745298641220,-500.0,0.00022865,2]
[358595371,1745298641229,-500.0,0.00022865,2]
[358595372,1745298641238,-1000.0,0.00022865,2]
[358595373,1745298641248,-501.17847287,0.00022865,2]
[358595374,1745298641258,-513.33903632,0.00022865,2]
[358595375,1745298641267,-500.0,0.00022865,2]
[358595376,1745298641277,-500.0,0.00022865,2]
[358595377,1745298641287,-500.0,0.00022865,2]
[358595378,1745298641297,-289.89809909,0.00022865,2]
[358595379,1745298641307,-500.0,0.00022865,2]
[358595380,1745298641316,-500.0,0.00022865,2]
[358595381,1745298641327,-500.0,0.00022865,2]
[358595382,1745298641338,-500.71100963,0.00022865,2]
[358595383,1745298641348,-500.0,0.00022865,2]
[358595384,1745298641357,-504.72968403,0.00022865,2]
[358595385,1745298641367,-501.42740333,0.00022865,2]
[358595386,1745298641377,-500.0,0.00022865,2]
[358595387,1745298641387,-500.0,0.00022865,2]
[358595388,1745298641396,-500.0,0.00022865,2]
[358595389,1745298641406,-500.0,0.00022865,2]
[358595390,1745298641416,-500.0,0.00022865,2]
[358595391,1745298641426,-500.0,0.00022865,2]
[358595392,1745298641435,-504.87027715,0.00022865,2]
[358595393,1745298641444,-500.0,0.00022865,2]
[358595394,1745298641453,-500.0,0.00022865,2]
[358595395,1745298641462,-500.0,0.00022865,2]
[358595396,1745298641472,-500.0,0.00022865,2]
[358595397,1745298641482,-505.64894293,0.00022865,2]
[358595398,1745298641491,-500.0,0.00022865,2]
[358595399,1745298641500,-500.0,0.00022865,2]
[358595400,1745298641512,-599.68,0.00022865,2]
[358595401,1745298641528,-500.0,0.00022865,2]
[358595402,1745298641537,-506.34277989,0.00022865,2]
[358595403,1745298641546,-500.0,0.00022865,2]
[358595404,1745298641556,-500.0,0.00022865,2]
[358595405,1745298641566,-523.76809137,0.00022865,2]
[358595406,1745298641576,-151.0,0.00022865,7]
[358595407,1745298641585,-500.0,0.00022865,2]
[358595408,1745298641595,-500.0,0.00022865,2]
[358595409,1745298641604,-179.563718,0.00022865,7]
[358595410,1745298641614,-179.563718,0.00022865,7]
[358595411,1745298641625,-500.38574003,0.00022865,2]
[358595412,1745298641635,-500.0,0.00022865,2]
[358595413,1745298641645,-500.0,0.00022865,2]
[358595414,1745298641655,-151.0,0.00022865,7]
[358595415,1745298641665,-151.0,0.00022865,7]
[358595416,1745298641675,-500.65093928,0.00022865,2]
[358595417,1745298641684,-541.53295048,0.00022865,2]
[358595418,1745298641693,-500.0,0.00022865,2]
[358595419,1745298641769,-500.0,0.00022865,2]